bitfinex-derivatives/quotes_BTCF0:USTF0_20210708
["timestamp","ask_amount","ask_price","bid_price","bid_amount"]
[1625764007657,0.24057544,32886.0,32880.0,0.24057544]
[1625764007881,0.59295544,32886.0,32880.0,0.24057544]
[1625764008178,1.09295544,32886.0,32880.0,0.24057544]
[1625764009158,1.09295544,32886.0,32874.0,0.24057544]
[1625764009456,0.48115088,32875.0,32874.0,0.24057544]
[1625764009607,0.82907088,32875.0,32874.0,0.24057544]
[1625764018408,0.82907088,32875.0,32871.0,1.8144]
[1625764019514,0.24057544,32872.0,32871.0,1.8144]
[1625764020716,0.55089544,32872.0,32871.0,1.8144]
[1625764028371,0.24057544,32872.0,32871.0,1.8144]
[1625764036781,0.24057544,32872.0,32871.0,1.6964]
[1625764036932,0.24057544,32872.0,32871.0,1.6164]
[1625764041889,0.24057544,32872.0,32871.0,2.32438436]
[1625764043988,0.24057544,32872.0,32871.0,3.38727924]
[1625764048348,0.24057544,32872.0,32871.0,3.66601924]
[1625764048497,0.24057544,32872.0,32871.0,4.90957419]
[1625764048648,0.24057544,32872.0,32871.0,3.66601924]
[1625764048873,0.24057544,32872.0,32871.0,4.90952208]
[1625764049624,0.51784544,32872.0,32871.0,4.90952208]
[1625764049925,0.51784544,32872.0,32871.0,3.66601924]
[1625764050074,0.51784544,32872.0,32871.0,3.38727924]
[1625764050224,0.51784544,32872.0,32871.0,4.63274164]
[1625764050677,0.8758597,32872.0,32871.0,3.38727924]
[1625764051503,0.51784544,32872.0,32871.0,3.38727924]
[1625764051726,0.87608021,32872.0,32871.0,3.38727924]
[1625764052253,0.87608021,32872.0,32871.0,4.63289223]
[1625764052476,0.87608021,32872.0,32871.0,3.38727924]
[1625764053904,1.23457673,32872.0,32871.0,4.63323171]
[1625764054129,1.23457673,32872.0,32871.0,3.38727924]
[1625764054430,2.30954646,32872.0,32871.0,3.38727924]
[1625764058944,1.23457673,32872.0,32871.0,4.63618916]
[1625764059164,0.24057544,32872.0,32871.0,4.63618916]
[1625764059463,0.59912078,32872.0,32871.0,6.0634395]
[1625764061864,0.24057544,32872.0,32871.0,6.0634395]
[1625764062618,0.59912757,32872.0,32871.0,6.0634395]
[1625764062765,0.24057544,32872.0,32871.0,6.0634395]
[1625764063140,0.59913016,32872.0,32871.0,6.0634395]
[1625764063292,0.59913016,32872.0,32871.0,4.63618916]
[1625764063293,0.95757324,32872.0,32871.0,4.63618916]
[1625764063441,1.21167324,32872.0,32871.0,4.63618916]
[1625764064045,2.28737628,32872.0,32871.0,4.63618916]
[1625764064498,1.21167324,32872.0,32871.0,4.63618916]
[1625764065931,2.28835311,32872.0,32871.0,6.06312452]
[1625764067801,3.54522467,32872.0,32871.0,6.06312452]
[1625764068252,3.54522467,32872.0,32871.0,4.63618916]
[1625764068551,3.54522467,32872.0,32871.0,6.064343]
[1625764071334,3.54522467,32872.0,32871.0,4.63618916]
[1625764072910,4.98176804,32872.0,32871.0,4.63618916]
[1625764076741,3.54522467,32872.0,32871.0,4.63618916]
[1625764077566,4.08402977,32872.0,32871.0,6.5984716]
[1625764079521,4.08402977,32872.0,32871.0,5.1713571]
[1625764079522,5.52091751,32872.0,32871.0,5.1713571]
[1625764080270,5.52091751,32872.0,32871.0,6.59925837]
[1625764080944,4.08402977,32872.0,32871.0,6.59925837]
[1625764081394,5.52104784,32872.0,32871.0,6.59925837]
[1625764081844,4.08402977,32872.0,32871.0,6.59925837]
[1625764082294,5.52115265,32872.0,32871.0,6.59925837]
[1625764082898,4.08402977,32872.0,32871.0,6.59925837]
[1625764083047,4.08402977,32872.0,32871.0,6.83294837]
[1625764083873,3.84345433,32872.0,32871.0,6.83294837]
[1625764084085,3.58935433,32872.0,32871.0,6.83294837]
[1625764084350,2.33248277,32872.0,32871.0,9.16264986]
[1625764084506,0.53916573,32872.0,32871.0,9.16264986]
[1625764084778,0.53911761,32873.0,32871.0,9.16264986]
[1625764084925,0.35934718,32874.0,32872.0,6.6103021]
[1625764085252,0.63871908,32876.0,32873.0,5.3596061]
[1625764085526,1.49779453,32879.0,32875.0,4.28601837]
[1625764085677,1.49779453,32879.0,32878.0,2.67834928]
[1625764085678,0.24057544,32879.0,32878.0,2.67834928]
[1625764085824,0.24057544,32879.0,32878.0,2.97398928]
[1625764086275,0.24057544,32879.0,32878.0,4.57980548]
[1625764086425,0.24057544,32879.0,32878.0,5.06095636]
[1625764087625,0.24057544,32879.0,32878.0,9.01245636]
[1625764089451,1.49715513,32883.0,32878.0,9.01245636]
[1625764089581,0.24057544,32883.0,32878.0,9.01245636]
[1625764089733,0.24057544,32883.0,32882.0,2.67027919]
[1625764090328,0.24057544,32883.0,32882.0,2.91085463]
[1625764091232,0.24057544,32886.0,32882.0,2.91085463]
[1625764091386,0.24057544,32886.0,32885.0,1.24513649]
[1625764091534,0.24057544,32886.0,32885.0,1.57902649]
[1625764091982,1.25513347,32887.0,32885.0,1.57902649]
[1625764092133,1.25513347,32887.0,32886.0,1.24484802]
[1625764092433,1.25513347,32887.0,32886.0,1.7259989]
[1625764092585,1.2543918,32889.0,32886.0,1.7259989]
[1625764092883,1.2543918,32889.0,32887.0,1.24364904]
[1625764093260,1.25436463,32890.0,32887.0,1.24364904]
[1625764093409,1.39358254,32891.0,32887.0,1.24364904]
[1625764093577,1.79187268,32900.0,32886.0,1.90185018]
[1625764093578,1.61266208,32896.0,32886.0,0.48115088]
[1625764093862,1.61260953,32897.0,32886.0,0.48115088]
[1625764094012,1.61259645,32898.0,32886.0,0.48115088]
[1625764094461,1.61259645,32898.0,32897.0,0.72172632]
[1625764094612,1.61259645,32898.0,32897.0,0.95609632]
[1625764094763,1.61127727,32899.0,32897.0,0.95609632]
[1625764095217,1.61129884,32898.0,32897.0,0.95609632]
[1625764095813,1.61129884,32898.0,32897.0,0.72172632]
[1625764096415,1.61031634,32899.0,32897.0,0.72172632]
[1625764098593,0.24057544,32902.0,32897.0,0.72172632]
[1625764098594,1.60944827,32900.0,32897.0,0.72172632]
[1625764099945,1.60938293,32901.0,32897.0,0.72172632]
[1625764100245,1.84976122,32902.0,32897.0,0.72172632]
[1625764100395,1.84976122,32902.0,32901.0,0.24057544]
[1625764100396,0.24057544,32902.0,32901.0,0.24057544]
[1625764102348,1.84873382,32902.0,32901.0,0.24057544]
[1625764104300,1.93943382,32902.0,32901.0,0.16557544]
[1625764104451,3.72581969,32902.0,32901.0,0.16557544]
[1625764104604,3.72581969,32902.0,32897.0,0.10677544]
[1625764104750,3.98333969,32902.0,32897.0,0.10677544]
[1625764104900,1.6077627,32898.0,32897.0,0.10677544]
[1625764106027,1.6077627,32898.0,32897.0,0.09177544]
[1625764106177,1.6077627,32898.0,32897.0,0.01577544]
[1625764106327,1.6077627,32898.0,32889.0,0.23635088]
[1625764106479,5.43707544,32890.0,32889.0,0.07335088]
[1625764106658,5.65347544,32890.0,32889.0,0.07335088]
[1625764107526,7.26140387,32890.0,32889.0,0.07335088]
[1625764107834,7.26140387,32890.0,32884.0,1.21317544]
[1625764107976,1.60800845,32889.0,32884.0,1.21317544]
[1625764108278,1.60789931,32888.0,32884.0,1.13717544]
[1625764108428,0.24057544,32885.0,32884.0,1.13717544]
[1625764108577,1.6700221,32885.0,32884.0,1.13717544]
[1625764108726,3.27815521,32885.0,32884.0,1.13717544]
[1625764109478,3.27815521,32885.0,32884.0,0.8966]
[1625764112332,3.27815521,32885.0,32884.0,0.8666]
[1625764112481,3.27815521,32885.0,32881.0,1.16407544]
[1625764112782,1.42954467,32882.0,32881.0,1.16407544]
[1625764112934,1.65246467,32882.0,32881.0,0.9235]
[1625764113310,1.65246467,32882.0,32876.0,0.24057544]
[1625764113611,1.2508948,32878.0,32876.0,0.24057544]
[1625764114515,0.48115088,32877.0,32876.0,0.24057544]
[1625764115264,1.55339048,32877.0,32876.0,0.24057544]
[1625764118195,2.80448342,32877.0,32876.0,0.24057544]
[1625764124504,1.55339048,32877.0,32876.0,0.24057544]
[1625764124796,2.80437594,32877.0,32876.0,0.24057544]
[1625764127273,2.80437594,32877.0,32872.0,0.08887039]
[1625764127726,1.07228692,32875.0,32871.0,0.08815763]
[1625764127875,0.08952172,32872.0,32871.0,0.08815763]
[1625764128179,1.07229509,32874.0,32871.0,0.08815763]
[1625764128627,0.24057544,32872.0,32871.0,0.08815763]
[1625764128929,0.24057544,32872.0,32870.0,0.08818574]
[1625764129228,0.08952428,32871.0,32870.0,0.08818574]
[1625764130654,0.33009972,32871.0,32870.0,0.08818574]
[1625764131032,0.24057544,32871.0,32870.0,0.08818574]
[1625764131479,0.33009018,32871.0,32870.0,0.08818574]
[1625764132085,0.24057544,32871.0,32870.0,0.08818574]
[1625764132980,0.24057544,32871.0,32869.0,0.08822081]
[1625764133132,0.0895127,32870.0,32869.0,0.08822081]
[1625764136661,0.33008814,32870.0,32869.0,0.08822081]
[1625764137348,0.33008814,32870.0,32868.0,0.24057544]
[1625764137349,0.33008814,32870.0,32868.0,0.32879617]
[1625764138235,0.33008814,32870.0,32869.0,0.08820894]
[1625764138986,0.33008814,32870.0,32868.0,0.32877578]
[1625764139589,0.24057544,32870.0,32868.0,0.24057544]
[1625764139740,0.33006435,32870.0,32868.0,0.32875382]
[1625764144921,0.33006435,32870.0,32868.0,0.24057544]
[1625764145220,0.08947402,32869.0,32868.0,0.24057544]
[1625764145521,0.24057544,32870.0,32868.0,0.24057544]
[1625764145522,0.33004888,32870.0,32868.0,0.24057544]
[1625764145674,5.15787337,32869.0,32868.0,0.24057544]
[1625764145971,5.0684,32869.0,32868.0,0.24057544]
[1625764146121,5.15787334,32869.0,32868.0,0.24057544]
[1625764146423,5.0684,32869.0,32868.0,0.24057544]
[1625764148224,5.15787118,32869.0,32868.0,0.24057544]
[1625764154680,5.0684,32869.0,32868.0,0.3287125]
[1625764158585,5.78413449,32869.0,32868.0,0.24057544]
[1625764160462,6.85872481,32869.0,32868.0,0.94718561]
[1625764162564,8.11381465,32869.0,32868.0,2.00882414]
[1625764166089,8.11381465,32869.0,32868.0,3.25178448]
[1625764166916,9.55066003,32869.0,32868.0,3.25178448]
[1625764172627,8.83492554,32869.0,32868.0,2.19014595]
[1625764172778,5.0684,32869.0,32868.0,0.24057544]
[1625764173003,9.56024116,32869.0,32868.0,3.27244508]
[1625764174127,9.85145116,32869.0,32868.0,3.27244508]
[1625764174652,9.85145116,32869.0,32868.0,2.02402817]
[1625764174955,10.39057599,32869.0,32868.0,2.55962742]
[1625764176454,10.39057599,32869.0,32868.0,3.809623]
[1625764179684,10.39057599,32869.0,32868.0,2.55962742]
[1625764180362,10.39057599,32869.0,32868.0,3.80958565]
[1625764180810,10.39057599,32869.0,32868.0,2.55962742]
[1625764181110,10.39057599,32869.0,32868.0,3.80947895]
[1625764186443,12.00850589,32869.0,32868.0,3.80947895]
[1625764186893,12.00850589,32869.0,32868.0,2.55962742]
[1625764187645,12.00850589,32869.0,32868.0,3.80730819]
[1625764188170,12.00850589,32869.0,32868.0,2.55962742]
[1625764191024,12.00850589,32869.0,32868.0,2.31905198]
[1625764198609,12.00850589,32869.0,32868.0,3.56517594]
[1625764198906,12.00850589,32869.0,32868.0,2.31905198]
[1625764207093,12.00850589,32869.0,32868.0,3.56643331]
[1625764208671,6.94010589,32869.0,32868.0,3.88331331]
[1625764208820,5.03096599,32869.0,32868.0,3.88331331]
[1625764209122,3.59362712,32869.0,32868.0,5.54722779]
[1625764209270,3.59362712,32869.0,32868.0,10.93832779]
[1625764210095,2.33593315,32869.0,32868.0,12.5387996]
[1625764210621,1.25788409,32869.0,32868.0,12.5387996]
[1625764210919,0.84538409,32869.0,32868.0,12.5387996]
[1625764211522,0.53912483,32869.0,32868.0,12.5387996]
[1625764211821,0.3594456,32869.0,32868.0,12.5387996]
[1625764211971,0.44944082,32869.0,32868.0,12.5387996]
[1625764213025,0.08999522,32869.0,32868.0,12.5387996]
[1625764213999,0.68997488,32870.0,32868.0,12.5387996]
[1625764214150,0.68997488,32870.0,32869.0,5.86457269]
[1625764214451,0.08995819,32870.0,32869.0,5.86457269]
[1625764214678,0.68982202,32871.0,32869.0,5.86457269]
[1625764214905,0.68982202,32871.0,32870.0,5.86348598]
[1625764215129,0.33053176,32871.0,32870.0,6.10406142]
[1625764215728,0.1893741,32872.0,32870.0,6.10406142]
[1625764216029,0.1893741,32872.0,32871.0,5.86205315]
[1625764217381,0.08991473,32872.0,32871.0,5.86205315]
[1625764219332,0.08991473,32872.0,32871.0,4.26331138]
[1625764219483,0.08991473,32872.0,32871.0,5.86081098]
[1625764219719,0.0898543,32873.0,32871.0,5.86081098]
[1625764219932,0.0898543,32873.0,32872.0,4.25878389]
[1625764221059,0.53823423,32874.0,32872.0,4.25878389]
[1625764221210,0.53823423,32874.0,32873.0,0.24057544]
[1625764221363,0.53823423,32874.0,32873.0,4.49838444]
[1625764222114,0.53798607,32875.0,32873.0,4.49838444]
[1625764222337,0.53798607,32875.0,32874.0,4.25334353]
[1625764225415,0.53798607,32875.0,32874.0,2.83556235]
[1625764226993,1.31611815,32877.0,32874.0,2.83556235]
[1625764226994,0.53771349,32876.0,32874.0,4.24883254]
[1625764227221,0.53771349,32876.0,32875.0,3.06773667]
[1625764228643,0.53771349,32876.0,32875.0,3.33266667]
[1625764229924,5.72311349,32876.0,32875.0,3.33266667]
[1625764230069,5.72311349,32876.0,32875.0,3.06773667]
[1625764230222,5.72311349,32876.0,32875.0,1.83085363]
[1625764230683,6.79785693,32876.0,32875.0,1.83085363]
[1625764230824,6.79785693,32876.0,32875.0,0.77066817]
[1625764234801,5.1854,32876.0,32875.0,0.24057544]
[1625764234952,8.05116041,32876.0,32875.0,0.77278139]
[1625764235777,6.79744619,32876.0,32875.0,0.77278139]
[1625764238105,8.05117482,32876.0,32875.0,0.77278139]
[1625764240587,6.79744619,32876.0,32875.0,0.77278139]
[1625764242463,8.05127978,32876.0,32875.0,0.77278139]
[1625764242615,8.26900978,32876.0,32875.0,0.77278139]
[1625764243064,8.26900978,32876.0,32875.0,0.95025537]
[1625764243213,8.26900978,32876.0,32875.0,0.41804942]
[1625764243363,8.26900978,32876.0,32875.0,0.50680774]
[1625764243813,9.70207571,32876.0,32875.0,0.24057544]
[1625764247041,9.70207571,32876.0,32875.0,0.50701864]
[1625764248394,9.70207571,32876.0,32875.0,0.32938984]
[1625764248922,9.70207571,32876.0,32875.0,0.24057544]
[1625764249369,9.94265115,32876.0,32875.0,0.24057544]
[1625764249670,11.55543935,32876.0,32875.0,0.24057544]
[1625764249897,11.55543935,32876.0,32873.0,0.08873901]
[1625764250120,4.30108186,32874.0,32872.0,0.26642278]
[1625764250271,4.30139664,32873.0,32871.0,0.26665906]
[1625764250421,4.30139664,32873.0,32871.0,0.24665906]
[1625764250571,4.30150604,32872.0,32871.0,0.06888635]
[1625764250871,4.30150604,32872.0,32870.0,0.41838421]
[1625764251020,4.3015376,32871.0,32870.0,0.41838421]
[1625764251321,4.54211304,32871.0,32870.0,0.41838421]
[1625764255226,4.54211304,32871.0,32870.0,0.77442425]
[1625764255602,4.54211304,32871.0,32870.0,0.41856825]
[1625764260858,4.54211304,32871.0,32870.0,0.24057544]
[1625764261309,4.54211304,32871.0,32870.0,0.14807544]
[1625764262213,4.54211304,32871.0,32870.0,0.32599869]
[1625764264087,4.54211304,32871.0,32870.0,0.14807544]
[1625764264388,4.54211304,32871.0,32870.0,0.32610289]
[1625764264689,4.54211304,32871.0,32870.0,0.20740289]
[1625764265061,4.54211304,32871.0,32870.0,0.02937544]
[1625764265362,4.54211304,32871.0,32870.0,0.20741181]
[1625764266263,4.54211304,32871.0,32870.0,0.02937544]
[1625764266568,4.54211304,32871.0,32870.0,0.20741273]
[1625764266939,4.54211304,32871.0,32870.0,0.02937544]
[1625764267392,6.15611967,32871.0,32870.0,0.02937544]
[1625764267615,4.54211304,32871.0,32870.0,0.02937544]
[1625764270920,5.25936377,32871.0,32870.0,0.02937544]
[1625764271973,5.25936377,32871.0,32870.0,0.20851564]
[1625764272799,5.25936377,32871.0,32870.0,0.02937544]
[1625764275619,5.25936377,32871.0,32868.0,0.43795565]
[1625764275730,6.87139813,32871.0,32861.0,0.96499982]
[1625764275899,7.37139813,32871.0,32861.0,0.75259982]
[1625764276080,6.07970559,32862.0,32860.0,0.9284]
[1625764276202,6.39940559,32862.0,32857.0,0.19296345]
[1625764276346,6.39940559,32862.0,32857.0,0.06576345]
[1625764276507,3.03792484,32861.0,32849.0,1.43430267]
[1625764276781,1.42926006,32854.0,32848.0,1.43432739]
[1625764276940,1.42861475,32852.0,32846.0,1.43439873]
[1625764277078,4.2214,32847.0,32846.0,1.43439873]
[1625764277244,4.55325,32847.0,32846.0,1.43439873]
[1625764277420,4.55325,32847.0,32846.0,1.12939873]
[1625764277566,5.03440088,32847.0,32843.0,0.24057544]
[1625764281510,0.81300088,32847.0,32843.0,0.24057544]
[1625764282111,0.48115088,32847.0,32843.0,4.18167544]
[1625764282712,0.76142088,32847.0,32843.0,4.18167544]
[1625764283179,4.5118,32846.0,32843.0,4.18167544]
[1625764283318,4.5118,32846.0,32843.0,0.24057544]
[1625764287442,4.83361,32846.0,32843.0,0.24057544]
[1625764295181,4.83361,32846.0,32837.0,0.24057544]
[1625764295330,4.83361,32846.0,32835.0,1.01613763]
[1625764295517,1.0,32845.0,32827.0,3.2089092]
[1625764295642,0.96230176,32828.0,32827.0,1.42622375]
[1625764295830,1.31248176,32828.0,32823.0,0.9092]
[1625764296149,1.31248176,32828.0,32818.0,1.42650845]
[1625764296187,1.31248176,32828.0,32811.0,1.6049422]
[1625764296245,1.31248176,32828.0,32815.0,5.1283]
[1625764296534,1.31248176,32828.0,32815.0,6.37674054]
[1625764296843,1.40348176,32828.0,32815.0,5.1283]
[1625764297283,1.31248176,32828.0,32815.0,5.1283]
[1625764297590,1.31248176,32828.0,32815.0,6.37693868]
[1625764297591,0.61361276,32816.0,32815.0,6.37693868]
[1625764297885,1.276e-05,32816.0,32815.0,6.37693868]
[1625764298045,0.24057544,32828.0,32815.0,6.37693868]
[1625764298196,0.24057544,32828.0,32815.0,6.61889868]
[1625764298487,0.24057544,32828.0,32818.0,1.24667578]
[1625764298788,0.24057544,32828.0,32819.0,1.24662153]
[1625764298938,0.24057544,32828.0,32820.0,1.24660062]
[1625764299136,7.544e-05,32828.0,32820.0,1.74660062]
[1625764299274,0.9172,32839.0,32823.0,1.24653296]
[1625764299387,0.9172,32839.0,32823.0,1.46642296]
[1625764299542,0.9172,32839.0,32824.0,1.24651664]
[1625764299687,0.24057544,32838.0,32837.0,0.24057544]
[1625764299837,0.24057544,32838.0,32837.0,0.49690544]
[1625764300140,0.24057544,32838.0,32837.0,4.16660544]
[1625764306747,0.24057544,32838.0,32837.0,3.92603]
[1625764307046,0.56973544,32838.0,32837.0,0.25633]
[1625764307211,0.56973544,32838.0,32827.0,0.24057544]
[1625764307648,0.48115088,32828.0,32827.0,0.24057544]
[1625764307799,0.24057544,32828.0,32827.0,0.24057544]
[1625764314706,0.47001544,32828.0,32827.0,0.24057544]
[1625764319138,0.56101544,32828.0,32827.0,0.24057544]
[1625764320795,0.47001544,32828.0,32827.0,0.24057544]
[1625764320948,0.47001544,32828.0,32818.0,1.21837544]
[1625764321772,0.47001544,32828.0,32822.0,0.24057544]
[1625764323433,0.56011544,32828.0,32822.0,0.24057544]
[1625764323724,0.24057544,32823.0,32822.0,0.24057544]
[1625764324217,0.24057544,32823.0,32818.0,1.21837544]
[1625764324488,0.24057544,32823.0,32818.0,0.24057544]
[1625764325828,0.48115088,32823.0,32822.0,0.24057544]
[1625764329884,0.48115088,32823.0,32813.0,0.85682075]
[1625764330067,0.48115088,32823.0,32793.0,7.3062]
[1625764330068,1.53120191,32823.0,32810.0,0.59]
[1625764330337,1.7057759,32823.0,32810.0,0.3863]
[1625764330486,1.22399765,32821.0,32810.0,0.1423]
[1625764330636,1.56260765,32821.0,32810.0,0.1423]
[1625764330786,1.56260765,32821.0,32805.0,0.9464]
[1625764331087,1.56260765,32821.0,32805.0,0.9404]
[1625764331088,1.22351678,32820.0,32805.0,0.9404]
[1625764331237,1.22351678,32820.0,32797.0,1.245509]
[1625764331393,1.2813396,32819.0,32797.0,1.074509]
[1625764331545,1.7813396,32819.0,32796.0,1.4242768]
[1625764331686,1.7813396,32819.0,32794.0,1.24634108]
[1625764331687,1.22329055,32816.0,32794.0,1.24634108]
[1625764331836,1.22329055,32816.0,32797.0,0.24057544]
[1625764331837,0.24057544,32798.0,32797.0,0.24057544]
[1625764331986,0.63727544,32798.0,32797.0,0.24057544]
[1625764332169,0.58027544,32798.0,32797.0,0.24057544]
[1625764332287,0.63727544,32798.0,32797.0,0.24057544]
[1625764332737,0.58027544,32798.0,32797.0,0.24057544]
[1625764333789,0.24057544,32798.0,32797.0,0.24057544]
[1625764334989,0.29757544,32798.0,32797.0,0.24057544]
[1625764335138,0.56248544,32798.0,32797.0,0.24057544]
[1625764335738,0.50548544,32798.0,32797.0,0.24057544]
[1625764335888,0.56248544,32798.0,32797.0,0.24057544]
[1625764339640,0.50548544,32798.0,32797.0,0.24057544]
[1625764339790,0.29757544,32798.0,32797.0,0.24057544]
[1625764341296,0.64938544,32798.0,32797.0,0.24057544]
[1625764344305,0.74048544,32798.0,32797.0,0.24057544]
[1625764344597,0.68348544,32798.0,32797.0,0.24057544]
[1625764344897,0.59238544,32798.0,32797.0,0.24057544]
[1625764345496,0.64938544,32798.0,32797.0,0.24057544]
[1625764345947,0.98116088,32798.0,32797.0,0.24057544]
[1625764346247,0.98116088,32798.0,32797.0,0.19547544]
[1625764347146,0.88996088,32798.0,32797.0,0.19547544]
[1625764347896,0.88996088,32798.0,32794.0,0.24057544]
[1625764349252,0.057,32797.0,32794.0,0.24057544]
[1625764349998,0.057,32797.0,32794.0,0.48115088]
[1625764350748,0.057,32797.0,32794.0,0.09287544]
[1625764351514,0.48115088,32798.0,32794.0,0.09287544]
[1625764351684,0.48115088,32798.0,32794.0,0.40286544]
[1625764351950,0.24057544,32796.0,32794.0,0.40286544]
[1625764352924,0.24057544,32796.0,32794.0,0.09287544]
[1625764353451,0.29757544,32796.0,32794.0,0.09287544]
[1625764354510,0.24057544,32796.0,32794.0,0.09287544]
[1625764354660,0.29757544,32796.0,32794.0,0.09287544]
[1625764355551,0.24057544,32796.0,32794.0,0.09287544]
[1625764356186,0.24057544,32796.0,32794.0,0.44860136]
[1625764356454,0.24057544,32796.0,32795.0,0.35571672]
[1625764356605,0.24057544,32796.0,32795.0,0.95622074]
[1625764357455,0.24057544,32796.0,32795.0,0.60052798]
[1625764357898,0.24057544,32796.0,32795.0,0.84110342]
[1625764358197,0.24057544,32796.0,32795.0,0.48538544]
[1625764358648,0.24057544,32796.0,32795.0,1.19675906]
[1625764358786,0.24057544,32796.0,32795.0,0.48538544]
[1625764359112,0.24057544,32796.0,32795.0,0.84107481]
[1625764359388,0.24057544,32796.0,32795.0,0.48538544]
[1625764359836,0.24057544,32796.0,32795.0,0.84114751]
[1625764361037,0.24057544,32796.0,32795.0,0.48538544]
[1625764361187,0.24057544,32796.0,32795.0,1.19696073]
[1625764363213,0.24057544,32796.0,32795.0,2.26531759]
[1625764363887,0.24057544,32796.0,32795.0,1.19696073]
[1625764364342,0.24057544,32796.0,32795.0,2.26533687]
[1625764365388,0.24057544,32796.0,32795.0,1.19696073]
[1625764365541,0.24057544,32796.0,32795.0,2.26613173]
[1625764365840,0.24057544,32796.0,32795.0,2.80070918]
[1625764367716,0.24057544,32796.0,32795.0,4.04863414]
[1625764367866,0.24057544,32796.0,32795.0,2.80070918]
[1625764369369,0.24057544,32796.0,32795.0,4.04926944]
[1625764369837,0.24057544,32796.0,32795.0,2.80070918]
[1625764370944,0.24057544,32796.0,32795.0,1.73153818]
[1625764371544,0.24057544,32796.0,32795.0,2.80251261]
[1625764373346,0.24057544,32796.0,32795.0,4.05309907]
[1625764377553,0.24057544,32796.0,32795.0,5.48429159]
[1625764378002,0.24057544,32796.0,32795.0,4.05309907]
[1625764378224,0.24057544,32796.0,32795.0,5.48445001]
[1625764378524,0.24057544,32796.0,32795.0,4.05309907]
[1625764379425,0.24057544,32796.0,32795.0,5.48531253]
[1625764380720,0.29757544,32796.0,32795.0,5.48531253]
[1625764380850,0.29757544,32796.0,32795.0,4.05309907]
[1625764381450,0.29757544,32796.0,32795.0,3.81252363]
[1625764381600,0.29757544,32796.0,32795.0,2.56193717]
[1625764382049,0.53815088,32796.0,32795.0,2.56193717]
[1625764383325,0.53815088,32796.0,32795.0,2.48633717]
[1625764384152,0.77872632,32796.0,32795.0,2.48633717]
[1625764386332,1.65803968,32796.0,32795.0,3.74286164]
[1625764386483,1.30627918,32796.0,32795.0,2.48633717]
[1625764387008,1.65804799,32796.0,32795.0,2.48633717]
[1625764387758,1.65804799,32796.0,32795.0,3.74281715]
[1625764388058,1.30627918,32796.0,32795.0,2.48633717]
[1625764388212,3.06684032,32796.0,32795.0,3.5754859]
[1625764388662,3.06684032,32796.0,32795.0,3.3193859]
[1625764388808,3.06684032,32796.0,32795.0,2.06102717]
[1625764388809,4.29768523,32796.0,32795.0,2.06102717]
[1625764390236,4.29768523,32796.0,32795.0,2.01742717]
[1625764390386,4.29768523,32796.0,32795.0,1.88062717]
[1625764390549,5.703611,32796.0,32795.0,0.80965274]
[1625764390687,5.703611,32796.0,32795.0,0.35970649]
[1625764390990,7.28378528,32796.0,32794.0,0.35971399]
[1625764391214,4.21369333,32795.0,32794.0,0.35971399]
[1625764391361,4.27069333,32795.0,32794.0,0.35971399]
[1625764391813,4.27069333,32795.0,32794.0,0.53953924]
[1625764392338,4.27069333,32795.0,32794.0,0.35969482]
[1625764392488,4.27069333,32795.0,32794.0,0.35409482]
[1625764392714,4.27069333,32795.0,32792.0,0.53927507]
[1625764393015,4.21106535,32793.0,32792.0,0.53927507]
[1625764393164,4.26806535,32793.0,32792.0,0.53927507]
[1625764393314,4.26806535,32793.0,32791.0,0.53930327]
[1625764393616,4.20900692,32792.0,32791.0,0.53930327]
[1625764393763,4.55400692,32792.0,32791.0,0.53930327]
[1625764393913,3.20806306,32792.0,32791.0,0.53930327]
[1625764394064,3.4486385,32792.0,32791.0,0.53930327]
[1625764394213,4.85175477,32792.0,32791.0,0.53930327]
[1625764394364,3.4486385,32792.0,32791.0,1.34395828]
[1625764394589,4.85130858,32792.0,32791.0,0.26510327]
[1625764394965,4.85130858,32792.0,32788.0,1.07841721]
[1625764395116,1.05186851,32789.0,32787.0,1.25815341]
[1625764395267,0.057,32788.0,32787.0,1.25815341]
[1625764395566,0.057,32788.0,32787.0,2.33656071]
[1625764395716,0.057,32788.0,32787.0,2.21766071]
[1625764395869,1.10881425,32788.0,32787.0,2.21766071]
[1625764396168,0.53815088,32788.0,32787.0,2.21766071]
[1625764396993,0.53815088,32788.0,32787.0,1.0784073]
[1625764397444,0.48115088,32788.0,32787.0,1.0784073]
[1625764397594,0.53815088,32788.0,32787.0,1.0784073]
[1625764399096,0.48115088,32788.0,32787.0,1.0784073]
[1625764399547,0.53815088,32788.0,32787.0,1.0784073]
[1625764401047,0.53815088,32788.0,32787.0,1.3685173]
[1625764401197,0.48115088,32788.0,32787.0,1.3685173]
[1625764401799,0.48115088,32788.0,32787.0,2.80453775]
[1625764402176,0.48115088,32788.0,32787.0,4.66055771]
[1625764408186,0.24057544,32792.0,32787.0,4.66055771]
[1625764408345,0.24057544,32792.0,32791.0,2.69195935]
[1625764408484,0.24057544,32792.0,32791.0,4.12767101]
[1625764409011,0.24057544,32792.0,32791.0,8.47587101]
[1625764410135,0.24057544,32792.0,32791.0,7.39908727]
[1625764410290,0.24057544,32792.0,32791.0,7.63966271]
[1625764410436,0.24057544,32792.0,32791.0,8.71634754]
[1625764415317,0.24057544,32796.0,32791.0,8.71634754]
[1625764415617,0.24057544,32796.0,32795.0,2.51242578]
[1625764415766,0.24057544,32796.0,32795.0,2.79436578]
[1625764415917,0.24057544,32796.0,32795.0,4.05057741]
[1625764416216,0.24057544,32796.0,32795.0,4.29115285]
[1625764417419,0.24057544,32796.0,32795.0,5.90629846]
[1625764419074,0.24057544,32800.0,32795.0,5.90629846]
[1625764419228,0.24057544,32803.0,32795.0,5.90629846]
[1625764419376,1.66760334,32812.0,32799.0,3.76853641]
[1625764419377,1.0515205,32806.0,32799.0,3.76853641]
[1625764419678,1.05211028,32808.0,32805.0,1.07668339]
[1625764419823,1.05211028,32808.0,32805.0,1.29272339]
[1625764419975,1.05286115,32811.0,32807.0,2.33260144]
[1625764420123,1.05286115,32811.0,32808.0,3.7205]
[1625764420274,1.05338268,32812.0,32810.0,1.5577271]
[1625764420574,1.2938818,32813.0,32811.0,1.07605072]
[1625764420875,1.2938818,32813.0,32810.0,1.557221]
[1625764421647,1.3508818,32813.0,32810.0,1.557221]
[1625764421799,1.3508818,32813.0,32810.0,0.48115088]
[1625764421800,1.05304691,32812.0,32810.0,0.48115088]
[1625764421962,0.057,32811.0,32810.0,0.48115088]
[1625764422077,1.10981249,32811.0,32810.0,0.48115088]
[1625764423877,1.05281249,32811.0,32810.0,0.48115088]
[1625764425756,1.05281249,32811.0,32810.0,0.66042671]
[1625764428474,1.0533844,32812.0,32810.0,0.48115088]
[1625764428635,1.0533844,32812.0,32810.0,0.78008088]
[1625764428762,1.29437994,32813.0,32811.0,0.17920016]
[1625764428925,0.057,32812.0,32811.0,0.17920016]
[1625764429234,1.11013492,32812.0,32810.0,0.6603557]
[1625764430040,1.05313492,32812.0,32810.0,0.6603557]
[1625764430338,0.17575411,32811.0,32810.0,0.48115088]
[1625764430563,0.08794798,32811.0,32810.0,0.48115088]
[1625764431013,0.26367724,32812.0,32810.0,0.48115088]
[1625764431766,0.08795683,32812.0,32810.0,1.55595554]